Cogmind - Beta 13 @@@ ROGUE MODE // 2024.06.30 @ 02:57:40 Player: Berg Result: Destroyed by D-53 Grenadier with Mini Grenade Launcher Performance ------------- Evolutions (0) 0 Regions Visited (2) 400 Robots Destroyed (29) 145 Value Destroyed (536) 536 Prototype IDs (0) 0 Alien Tech Used (0) 0 Bonus (0) 0 TOTAL SCORE: 1081 Bonus ------- None Cogmind --------- Core Integrity 0/250 Matter 300/300 Energy 100/100 System Corruption 4% Temperature Cool (5) Movement Walking (260) Ox2 Location -10/Mines Parts ------- > --- POWER (1) -------- (None) > --- PROPULSION (2) --- Aluminum Leg > --- UTILITY (2) ------ Large Storage Unit Signal Interpreter > --- WEAPON (2) ------- Medium Laser > --- INVENTORY (15) --- Ion Engine Ion Engine Aluminum Leg Aluminum Leg Improved Heat Sink Large Battery (200) Sensor Array Hacking Suite Tractor Beam Medium Laser Light Assault Rifle Light Assault Rifle Grenade Launcher Grenade Launcher Rocket Launcher Peak State ------------ > --- POWER ------------ Light Nuclear Core > --- PROPULSION ------- Aluminum Leg Aluminum Leg > --- UTILITY ---------- Large Storage Unit Signal Interpreter > --- WEAPON ----------- Medium Laser Light Assault Rifle > --- INVENTORY -------- Ion Engine Ion Engine Aluminum Leg Aluminum Leg Improved Heat Sink Large Battery Sensor Array Hacking Suite Tractor Beam Medium Laser Light Assault Rifle Light Assault Rifle Grenade Launcher Grenade Launcher Rocket Launcher [Rating: 11] Favorites ----------- Power Ion Engine Engine Ion Engine Power Core Light Nuclear Core Propulsion Light Treads Treads Light Treads Leg Aluminum Leg Utility Signal Interpreter Storage Large Storage Unit Processor Signal Interpreter Weapon Medium Laser Energy Gun Medium Laser Ballistic Gun Light Assault Rifle Build | -11 -10 -10 ------- Run | Yrd Mat Min Slots Evolved . | . . . Power . | . . . Propulsion . | . . . Utility . | . . . Weapon . | . . . Parts Attached 15 | 6 5 4 Power 4 | 1 2 1 Engine 3 | 1 2 . Core 1 | . . 1 Reactor . | . . . Propulsion 5 | 2 . 3 Treads 2 | 2 . . Leg 3 | . . 3 Wheel . | . . . Hover . | . . . Flight . | . . . Utility 3 | 1 2 . Device . | . . . Storage 2 | 1 1 . Processor 1 | . 1 . Hackware . | . . . Protection . | . . . Artifact . | . . . Weapon 3 | 2 1 . Energy Gun 2 | 2 . . Energy Cannon . | . . . Ballistic Gun 1 | . 1 . Ballistic Cannon . | . . . Launcher . | . . . Special Weapon . | . . . Impact Weapon . | . . . Slashing Weapon . | . . . Piercing Weapon . | . . . Special Melee Weapon . | . . . Unidentified Prototypes . | . . . Parts Lost 5 | . 1 4 Power 1 | . . 1 Propulsion 2 | . . 2 Utility . | . . . Weapon 2 | . 1 1 Highest Loss Streak 3 | . 1 3 To Critical Strikes . | . . . Average Slot Usage (%) 99 | . 99 99 Engine 8 | . 14 3 Core 5 | . . 10 Treads 16 | . 28 6 Leg 11 | . . 21 Storage 14 | . 14 14 Processor 13 | . 13 14 Energy Gun 14 | . 15 14 Ballistic Gun 13 | . 12 14 Naked Turns . | . . . Heaviest Build 28 | 12 28 28 Greatest Support 40 | 40 40 40 Greatest Overweight (x) 2 | . . 2 Average Overweight (x) . | . . . Largest Inventory Capacity 15 | 8 15 15 Average Capacity 13 | 7 12 15 Most Carried 15 | 4 11 15 Average Carried 10 | 3 7 14 Final Capacity 15 | 8 15 15 Final Carried 15 | 4 11 15 Class Distribution -------------------- 100% | Mutant Dominant Class ---------------- Mutant | -10/Materials Mutant | -10/Mines Resources | -11 -10 -10 ----------- Run | Yrd Mat Min Matter Collected 428 | 260 83 85 Remotely . | . . . Salvage Created 898 | 118 478 302 Parts 63 | 9 27 27 Haulers Intercepted . | . . . Recyclers Shooed . | . . . Parts Field Recycled . | . . . Retrieved Matter . | . . . Parts Self-Destructed . | . . . Prevented . | . . . Kills | -11 -10 -10 ------- Run | Yrd Mat Min Combat Hostiles Destroyed 22 | . 8 14 Guns 21 | . 8 13 Classes Destroyed 7 | 2 4 1 Tunneler 3 | 3 . . Recycler 3 | 1 2 . Operator 1 | . 1 . Watcher 1 | . 1 . Swarmer 12 | . 3 9 Grunt 9 | . 5 4 Assembled 1 | . . 1 Best Kill Streak 4 | 4 3 3 Combat Bots Only 3 | . 3 3 Max Kills in Single Turn 1 | 1 1 1 Gunslinging . | . . . Exploded . | . . . Melee . | . . . Uniques/NPCs Destroyed . | . . . Combat | -11 -10 -10 -------- Run | Yrd Mat Min Hostile Shots Fired 122 | . 41 81 Missed 36 | . 10 26 Damage Taken 1110 | . 361 749 Core 251 | . 52 199 Absorbed by Shields . | . . . Core Remaining (%) 100 | 100 . . Volleys Fired 101 | 9 42 50 Largest 2 | 2 2 2 Hottest 90 | 90 90 70 Shots Fired 195 | 18 83 94 Gun 195 | 18 83 94 Cannon . | . . . Launcher . | . . . Special . | . . . Kinetic 85 | . 35 50 Thermal 95 | 9 42 44 Explosive . | . . . Electromagnetic 15 | 9 6 . Robot Hit Streak 20 | 3 20 8 Robot Miss Streak 5 | 2 3 5 Penetration Max . | . . . Secondary Targets 3 | . 2 1 Max Gunslinging Chain 1 | . 1 1 Shots Hit Robots 121 | 11 54 56 Core Hits 57 | 5 23 29 Critical Kills 1 | . 1 . Critical Parts Destroyed 1 | . 1 . Critical Strikes 6 | . 3 3 Burn 4 | . 1 3 Destroy 2 | . 2 . Melee Attacks . | . . . Impact . | . . . Slashing . | . . . Piercing . | . . . Sneak Attacks . | . . . Combat Hostiles . | . . . Follow-up Attacks . | . . . Damage Inflicted 1399 | 161 596 642 Guns 1398 | 161 596 641 Cannons . | . . . Explosions . | . . . Melee . | . . . Ramming 1 | . . 1 Kinetic 440 | . 204 236 Thermal 782 | 50 327 405 Explosive . | . . . Electromagnetic 176 | 111 65 . Impact . | . . . Slashing . | . . . Piercing . | . . . Highest Corruption 4 | . . 4 Average Corruption 4 | . . 4 Corruption Purged . | . . . Corruption Blocked . | . . . Overload Shots . | . . . Overflow Damage . | . . . Projectiles . | . . . Explosions . | . . . Melee . | . . . Knockbacks . | . . . Impact . | . . . Kinetic . | . . . Secondary . | . . . Self-Inflicted Damage . | . . . Shots . | . . . Rammed . | . . . Targets Rammed 1 | . . 1 Kicked 1 | . . 1 Crushed . | . . . Highest Temperature 270 | 270 254 211 Average Temperature 78 | 136 73 67 Received Heat Transfer 285 | . 132 153 Effects 2 | 1 1 . Energy Bleed 2 | 1 1 . Siege Activations . | . . . Robots Corrupted . | . . . Combat Hostiles . | . . . Parts Fried . | . . . Impact Corruptions . | . . . Robots Melted 1 | . . 1 Combat Hostiles 1 | . . 1 Parts Melted 5 | . 4 1 Heat Transferred 2590 | 148 1036 1406 Parts Sabotaged . | . . . Parts Stolen . | . . . Parts Stripped . | . . . Power Chain Reactions . | . . . Alert | -11 -10 -10 ------- Run | Yrd Mat Min Peak Influence 206 | 20 160 206 Initial 13 | . 13 11 Average 66 | 9 51 86 Maximum Alert Level 1 | . . 1 Low Security (%) 95 | 100 100 90 Level 1 4 | . . 9 Level 2 . | . . . Level 3 . | . . . Level 4 . | . . . Level 5 . | . . . High Security . | . . . Max Security . | . . . Squads Dispatched 1 | . 1 . Investigation . | . . . Extermination . | . . . Reinforcement 1 | . 1 . Assault . | . . . Garrison . | . . . Intercept . | . . . Searches Triggered . | . . . Construction Impeded . | . . . Haulers Reinforced . | . . . Active Scanning Responses . | . . . Cargo Convoy Interrupts . | . . . Stealth | -11 -10 -10 --------- Run | Yrd Mat Min Distress Signals . | . . . Communications Jammed . | . . . Distress Signals . | . . . Times Spotted 45 | . 14 31 Peak Tracking Total 12 | . 3 12 Tactical Retreats 2 | . . 2 Traps | -11 -10 -10 ------- Run | Yrd Mat Min Traps Triggered 1 | . 1 . Indirectly . | . . . Trap Hack Attempts . | . . . Triggered . | . . . Disarmed . | . . . Reprogrammed . | . . . Reused . | . . . Traps Extracted . | . . . Installed . | . . . Triggered . | . . . Machines | -11 -10 -10 ---------- Run | Yrd Mat Min Machines Disabled . | . . . Max in Single Turn . | . . . Machines Repaired . | . . . Machines Dismantled . | . . . Machines Sabotaged . | . . . Overloaded Fab Kills . | . . . Hacking | -11 -10 -10 --------- Run | Yrd Mat Min Machines Accessed 4 | . 4 . Terminals 3 | . 3 . Fabricators . | . . . Repair Stations . | . . . Recycling Units 1 | . 1 . Scanalyzers . | . . . Garrison Access . | . . . Total Hacks 13 | . 13 . Successful 5 | . 5 . Failed 7 | . 7 . Catastrophic 1 | . 1 . Database Lockouts 1 | . 1 . Manual 11 | . 11 . Terminals 11 | . 11 . Fabricators . | . . . Repair Stations . | . . . Recycling Units 2 | . 2 . Scanalyzers . | . . . Garrison Access . | . . . Terminal Hacks 4 | . 4 . Robot Analysis 1 | . 1 . Emergency Access Points 1 | . 1 . Alert Level 1 | . 1 . Zone Layout 1 | . 1 . Fabricator Hacks . | . . . Repair Station Hacks . | . . . Recycling Unit Hacks . | . . . Scanalyzer . | . . . Garrison Access Hacks . | . . . Unauthorized Hacks 1 | . 1 . Terminals . | . . . Fabricators . | . . . Repair Stations . | . . . Recycling Units 1 | . 1 . Reject 1 | . 1 . Scanalyzers . | . . . Garrison Access . | . . . Data Cores Recovered . | . . . Used . | . . . Hacking Detections 2 | . 2 . Full Trace Events . | . . . Feedback Events . | . . . Feedback Blocked . | . . . Robot Schematics Acquired . | . . . Robots Built . | . . . Authchips . | . . . Time . | . . . Total Robot Build Rating . | . . . Part Schematics Acquired . | . . . Parts Built . | . . . Authchips . | . . . Time . | . . . Total Part Build Rating . | . . . Parts Repaired . | . . . Time . | . . . Parts Recycled . | . . . Recycled Matter . | . . . Retrieved Matter . | . . . Retrieved Components . | . . . Parts Scanalyzed . | . . . Part Schematics Acquired . | . . . Parts Damaged . | . . . Bothacking | -11 -10 -10 ------------ Run | Yrd Mat Min Used RIF Installer . | . . . Robots Hacked . | . . . Non-combat . | . . . Combat . | . . . Robot Hacks Applied . | . . . Relay Couplers Released . | . . . Fabnet Peak Effective % . | . . . Robots Rewired . | . . . Allies Hacked . | . . . Hacks Repelled . | . . . Allies | -11 -10 -10 -------- Run | Yrd Mat Min Total Allies . | . . . Largest Group . | . . . Highest-Rated Group . | . . . Highest-Rated Ally . | . . . Total Orders . | . . . Ally Attacks . | . . . Total Damage . | . . . Kills . | . . . Allies Corrupted . | . . . Allies Melted . | . . . Intel | -11 -10 -10 ------- Run | Yrd Mat Min Robot Analysis Total 1 | . 1 . Derelict Logs Recovered 1 | . . 1 Drone Launches . | . . . Drone Recoveries . | . . . Exploration | -11 -10 -10 ------------- Run | Yrd Mat Min Turns Passed 2435 | 133 1088 1214 Spaces Moved 1101 | 60 567 474 Core 2 | 2 . . Treads 764 | 58 567 139 Legs 335 | . . 335 Wheels . | . . . Hover . | . . . Flight . | . . . Fastest Speed 50 | 50 160 160 Average Speed 169 | 156 160 181 Slowest Speed 260 | 160 160 260 Overloaded Moves . | . . . Propulsion Burnouts . | . . . Robots Hopped . | . . . Cave-ins Triggered . | . . . Exploration Rate (%) 51 | 4 72 78 Regions Visited 2 Branch Regions 1 Pre-discovered Areas . | . . . Known Exits Taken 1 | . 1 . Unknown Exits Taken 1 | 1 . . Scrap Searched . | . . . Spaces Dug . | . . . Terrain Destroyed . | . . . Melee . | . . . Projectile . | . . . AOE . | . . . Terrain Rammed . | . . . Walls Destroyed . | . . . Machines Disabled . | . . . Actions | -11 -10 -10 --------- Run | Yrd Mat Min Total 1492 | 78 673 741 Wait 247 | . 45 202 Move 1099 | 59 566 474 Hop . | . . . Pick Up 19 | 4 10 5 Fast Attach 9 | 6 1 2 Attach 2 | . 2 . Detach 2 | . 1 1 Swap 4 | . 2 2 Drop 8 | . 4 4 Fire 101 | 9 42 50 Melee . | . . . Ram . | . . . Kick 1 | . . 1 Crush . | . . . Escape Stasis . | . . . Rewire . | . . . Trap . | . . . Miscellaneous . | . . . Route ------- -11/Scrapyard -10/Materials (discovered 3 exits: *Mat x2 / *Min) -10/Mines (discovered 3 exits: *Mat x2 / *Sub) History --------- Turn | Location | Event 27 | -11/Scrapyard | Discovered new exit (range 16) 134 | -11/Scrapyard | Entered Materials 292 | -10/Materials | Discovered new exit (range 15) 302 | -10/Materials | Build established: Mutant 312 | -10/Materials | Identified exit to Mines 456 | -10/Materials | Central database locked down 456 | -10/Materials | Discovered new exit (range 19) 529 | -10/Materials | Discovered new exit (range 15) 608 | -10/Materials | Identified exit to Materials 1222 | -10/Materials | Entered Mines 1619 | -10/Mines | Identified exit to Subcaves 1807 | -10/Mines | Core integrity fell below 50% 1865 | -10/Mines | Discovered exit to Materials (range 14) 1916 | -10/Mines | Discovered exit to Materials (range 8) 2008 | -10/Mines | Received a Rocket Launcher from a helpful Derelict 2400 | -10/Mines | Assembled infested the area 2435 | -10/Mines | Core integrity fell below 20% 2436 | -10/Mines | Destroyed by D-53 Grenadier with Mini Grenade Launcher Last Messages --------------- 02250_ U-05 Engineer lays Concrete. 02285_ T-07 Excavator is excavating. 02294_ U-05 Engineer lays Concrete. 02399_ Acquired 7 matter. 02400_ ALERT: Infestation in the mines, dispatching Demolisher response squad. 02411_ Lgt. Nuclear Core destroyed. 02411_ System corrupted by crushing effect (+4). 02414_ Knocked back. 02419_ as-48956 destroyed. 02419_ Switching to secondary target: as-80595. 02433_ as-10063 destroyed. 02434_ Acquired 8 matter. 02434_ D-53 Grenadier unfolds itself. 02434_ as-36206 destroyed. 02434_ Lgt. Assault Rifle destroyed. 02434_ Aluminum Leg destroyed. 02434_ Laser Drill disabled. 02436_ The unstable cave ceiling collapses. 02436_ as-61118 destroyed. Map ----- +----------------------------------------------------+ | ?????????????????????????????????????????????????? | | ?????????????????????????????????????????????????? | | ?????????????????????????????????????????????????? | | ?????????????????????????????????????????????????? | | ?????????????????????????????????????????????????? | | ?????????????????????????????????????????????????? | | ?????????????????????????????????????????????????? | | ?????????????????????????????????????????????????? | | ?????????????????????????????????????????????????? | | ?????????????????????????????????????????????????? | | ?????????????????????????????????????????????????? | | ???????????????????????????????????? ????????????? | | ??????????????????????????????????"" ????????????# | | ?????????????????????????????????? ????????????# | | ?????????????????????????????????? ????????????# | | ??????????????????????????????????# #????????????# | | ??????????????????????????????????# #??????????### | | ??????????????????????????????????# #?????????## | | ??????????????????##??????????????# #?????????# | | ??????????????????? ??????????????# #?????????# | | ???????????????????# ??????###????# ##????????# | | ?????????????????### ##???? #???## ##???????# # | | ?????????????????# ##### #???# #???????# # | | ?????????????????# # #???# ##??????# # | | ?????????????????# # #??## #??????# # | | ?????????????????# % @ ####%* ######## # | | ?????????????????# "" # d%d ==* = # | | ?????????????????# """ ####[%= ########## | | ?????????????????# "" # #??# ##????????? | | ?????????????????############??# ###?????????? | | ???????????????????????????????## ##???????????? | | ????????????????????????????????#####????????????? | | ?????????????????????????????????????????????????? | | ?????????????????????????????????????????????????? | | | | | | | | | | | | | | | | | | | | | | | | | | | | | | | | | +----------------------------------------------------+ Best States ------------- Heat Dissipation 25 Energy Generation 14 Energy Capacity 250 Matter Stores 300 Matter Capacity 300 Sight Range 16 Terrain Scan Density 10 Evasion (%) 40 Recoil Reduction 2 Item Schematics ----------------- None Robot Schematics ------------------ None Fabricated ------------ Nothing Alien Tech Used ----------------- None Achievements -------------- None Challenges ------------ None Game ------ Seed PointSystemLegs Manual? 0 Play Time 00:18:38 Cumulative 57.1 hours Start 2024.06.30 @ 02:42:02 End 2024.06.30 @ 02:57:40 Sessions 1 Manual Loads 0 Difficulty Rogue Special Mode None Game No. 51 Rogue 51 Adventurer 0 Explorer 0 Win Type - Total 0 Types 0/0/0/0/0/0/0/0/0 Lore% 20 Gallery% 40 Achievement% 35 Wizard Run 0 Options --------- Layout 0 ASCII 0 Keyboard 1 Movement Numpad Keybinds 0 Fullscreen 2 Font 18/SmallcapsGlow Map View 76x50 Zoom Use 0% Tactical HUD 1 Map Filters NONE Filters NONE Steam 1 RUN: e1fd2b20-9105-4163-836b-c899fdb187cf